[Event "January 2 Early 2024"]
[Site "https://www.chess.com"]
[Date "2024.01.02"]
[Round "8"]
[White "xakevicius91"]
[Black "Skaric, Djuro"]
[Result "1-0"]
[Board "133"]
[TimeControl "180+1"]
[BlackFideId "934569"]
[WhiteElo "2502"]
[BlackElo "2307"]
[BlackTeam "SRB"]
[WhiteClock "0:00:23"]
[BlackClock "0:01:31"]

1. a3 {[%clk 0:02:58]}  d6 {[%clk 0:03:00]} 2. d4 {[%clk 0:02:56]}  Nf6 {[%clk 0:03:00]} 3. Nc3 {[%clk 0:02:56]}  g6 {[%clk 0:03:01]} 4. e4 {[%clk 0:02:55]}  Bg7 {[%clk 0:03:01]} 5. Nge2 {[%clk 0:02:53]}  O-O {[%clk 0:03:01]} 6. g3 {[%clk 0:02:54]}  Nc6 {[%clk 0:03:00]} 7. Bg2 {[%clk 0:02:54]}  e5 {[%clk 0:03:00]} 8. d5 {[%clk 0:02:54]}  Ne7 {[%clk 0:03:00]} 9. Be3 {[%clk 0:02:54]}  Ne8 {[%clk 0:02:59]} 10. g4 {[%clk 0:02:51]}  f5 {[%clk 0:02:59]} 11. gxf5 {[%clk 0:02:52]}  gxf5 {[%clk 0:02:58]} 12. f3 {[%clk 0:02:53]}  Ng6 {[%clk 0:02:54]} 13. Qd2 {[%clk 0:02:50]}  Nh4 {[%clk 0:02:51]} 14. Rg1 {[%clk 0:02:51]}  Nxg2+ {[%clk 0:02:51]} 15. Rxg2 {[%clk 0:02:52]}  f4 {[%clk 0:02:50]} 16. Bf2 {[%clk 0:02:52]}  Kh8 {[%clk 0:02:48]} 17. O-O-O {[%clk 0:02:52]}  Bf6 {[%clk 0:02:48]} 18. Rdg1 {[%clk 0:02:52]}  a6 {[%clk 0:02:48]} 19. Na2 {[%clk 0:02:41]}  Bd7 {[%clk 0:02:46]} 20. Qe1 {[%clk 0:02:38]}  Bh3 {[%clk 0:02:44]} 21. Rg4 {[%clk 0:02:12]}  Bxg4 {[%clk 0:02:43]} 22. Rxg4 {[%clk 0:02:12]}  Qe7 {[%clk 0:02:39]} 23. Nac3 {[%clk 0:02:03]}  Ng7 {[%clk 0:02:38]} 24. Nd1 {[%clk 0:02:01]}  Rg8 {[%clk 0:02:38]} 25. h3 {[%clk 0:02:01]}  Nh5 {[%clk 0:02:38]} 26. c4 {[%clk 0:02:00]}  h6 {[%clk 0:02:37]} 27. Qc3 {[%clk 0:01:58]}  Bg5 {[%clk 0:02:35]} 28. c5 {[%clk 0:01:55]}  Nf6 {[%clk 0:02:34]} 29. Rg2 {[%clk 0:01:54]}  Nh7 {[%clk 0:02:31]} 30. Be1 {[%clk 0:01:39]}  Rgc8 {[%clk 0:02:25]} 31. h4 {[%clk 0:01:34]}  Bxh4 {[%clk 0:02:20]} 32. Nxf4 {[%clk 0:01:34]}  Bg5 {[%clk 0:02:15]} 33. Bd2 {[%clk 0:01:33]}  Qg7 {[%clk 0:02:13]} 34. Ne6 {[%clk 0:01:26]}  Bxd2+ {[%clk 0:02:11]} 35. Qxd2 {[%clk 0:01:27]}  Qf6 {[%clk 0:02:11]} 36. Rh2 {[%clk 0:01:18]}  Rg8 {[%clk 0:02:09]} 37. Rxh6 {[%clk 0:01:16]}  Rg6 {[%clk 0:02:09]} 38. Rh3 {[%clk 0:01:10]}  Kg8 {[%clk 0:02:08]} 39. Nxc7 {[%clk 0:01:03]}  Rc8 {[%clk 0:02:06]} 40. Ne6 {[%clk 0:01:04]}  dxc5 {[%clk 0:02:02]} 41. Ne3 {[%clk 0:01:04]}  b5 {[%clk 0:01:56]} 42. Nf5 {[%clk 0:00:53]}  Ng5 {[%clk 0:01:43]} 43. Rg3 {[%clk 0:00:38]}  Qxe6 {[%clk 0:01:31]} 44. dxe6 {[%clk 0:00:23]} 1-0

[Event "January 2 Early 2024"]
[Site "https://www.chess.com"]
[Date "2024.01.02"]
[Round "8"]
[White "Rodriguez Avila, Alvaro"]
[Black "Stojanovski, Sandi"]
[Result "0-1"]
[Board "135"]
[TimeControl "180+1"]
[WhiteFideId "24570249"]
[BlackFideId "1403249"]
[WhiteElo "2281"]
[BlackElo "2500"]
[WhiteTeam "ESP"]
[BlackTeam "DEN"]
[WhiteClock "0:00:02"]
[BlackClock "0:00:06"]

1. e4 {[%clk 0:02:59]}  d6 {[%clk 0:03:00]} 2. d4 {[%clk 0:02:58]}  Nf6 {[%clk 0:02:59]} 3. Nc3 {[%clk 0:02:59]}  g6 {[%clk 0:02:55]} 4. Nf3 {[%clk 0:02:58]}  Bg7 {[%clk 0:02:55]} 5. Be2 {[%clk 0:02:59]}  O-O {[%clk 0:02:55]} 6. O-O {[%clk 0:03:00]}  Bg4 {[%clk 0:02:55]} 7. Be3 {[%clk 0:02:59]}  Nc6 {[%clk 0:02:53]} 8. Re1 {[%clk 0:02:56]}  e5 {[%clk 0:02:51]} 9. dxe5 {[%clk 0:02:45]}  dxe5 {[%clk 0:02:50]} 10. h3 {[%clk 0:02:36]}  Bxf3 {[%clk 0:02:49]} 11. Bxf3 {[%clk 0:02:36]}  Nd4 {[%clk 0:02:49]} 12. Be2 {[%clk 0:02:25]}  c6 {[%clk 0:02:48]} 13. Bc4 {[%clk 0:02:25]}  b5 {[%clk 0:02:46]} 14. Bb3 {[%clk 0:02:24]}  a5 {[%clk 0:02:45]} 15. a4 {[%clk 0:02:18]}  Nxb3 {[%clk 0:02:32]} 16. cxb3 {[%clk 0:02:19]}  b4 {[%clk 0:02:32]} 17. Ne2 {[%clk 0:02:10]}  Nxe4 {[%clk 0:02:31]} 18. Qc2 {[%clk 0:02:10]}  f5 {[%clk 0:02:07]} 19. Qxc6 {[%clk 0:02:08]}  Qd3 {[%clk 0:01:43]} 20. Qc4+ {[%clk 0:01:50]}  Qxc4 {[%clk 0:01:42]} 21. bxc4 {[%clk 0:01:51]}  Rfc8 {[%clk 0:01:16]} 22. Rac1 {[%clk 0:01:42]}  f4 {[%clk 0:00:52]} 23. Bb6 {[%clk 0:01:42]}  Rc6 {[%clk 0:00:51]} 24. f3 {[%clk 0:01:34]}  Nd2 {[%clk 0:00:45]} 25. c5 {[%clk 0:01:17]}  Nb3 {[%clk 0:00:43]} 26. Rc2 {[%clk 0:01:05]}  Bf8 {[%clk 0:00:39]} 27. Nc1 {[%clk 0:00:47]}  Bxc5+ {[%clk 0:00:27]} 28. Kh1 {[%clk 0:00:39]}  Nxc1 {[%clk 0:00:14]} 29. Rcxc1 {[%clk 0:00:33]}  Rxb6 {[%clk 0:00:13]} 30. Rxc5 {[%clk 0:00:33]}  Rd8 {[%clk 0:00:13]} 31. Re2 {[%clk 0:00:23]}  Re6 {[%clk 0:00:12]} 32. Rxa5 {[%clk 0:00:21]}  Rd1+ {[%clk 0:00:12]} 33. Kh2 {[%clk 0:00:21]}  Rc6 {[%clk 0:00:10]} 34. Raxe5 {[%clk 0:00:16]}  Rcc1 {[%clk 0:00:10]} 35. g4 {[%clk 0:00:09]}  Rh1+ {[%clk 0:00:10]} 36. Kg2 {[%clk 0:00:09]}  Rcg1+ {[%clk 0:00:10]} 37. Kf2 {[%clk 0:00:10]}  Rg3 {[%clk 0:00:10]} 38. Re8+ {[%clk 0:00:03]}  Kg7 {[%clk 0:00:09]} 39. R2e7+ {[%clk 0:00:04]}  Kh6 {[%clk 0:00:09]} 40. Re1 {[%clk 0:00:03]}  Rh2+ {[%clk 0:00:09]} 41. Kf1 {[%clk 0:00:03]}  Rxf3+ {[%clk 0:00:09]} 42. Kg1 {[%clk 0:00:04]}  Rfxh3 {[%clk 0:00:09]} 43. R8e2 {[%clk 0:00:03]}  Rh1+ {[%clk 0:00:08]} 44. Kf2 {[%clk 0:00:03]}  R3h2+ {[%clk 0:00:09]} 45. Kf3 {[%clk 0:00:04]}  Rxe1 {[%clk 0:00:08]} 46. Rxe1 {[%clk 0:00:04]}  Rxb2 {[%clk 0:00:07]} 47. Kxf4 {[%clk 0:00:03]}  Ra2 {[%clk 0:00:07]} 48. g5+ {[%clk 0:00:02]}  Kg7 {[%clk 0:00:06]} 49. Re7+ {[%clk 0:00:03]}  Kg8 {[%clk 0:00:06]} 50. Rb7 {[%clk 0:00:03]}  Rxa4 {[%clk 0:00:05]} 51. Ke5 {[%clk 0:00:04]}  Ra5+ {[%clk 0:00:05]} 52. Kf6 {[%clk 0:00:04]}  Ra6+ {[%clk 0:00:05]} 53. Ke5 {[%clk 0:00:04]}  Ra5+ {[%clk 0:00:05]} 54. Kf6 {[%clk 0:00:04]}  Rf5+ {[%clk 0:00:05]} 55. Ke6 {[%clk 0:00:05]}  Rxg5 {[%clk 0:00:06]} 56. Rb8+ {[%clk 0:00:05]}  Kg7 {[%clk 0:00:06]} 57. Rxb4 {[%clk 0:00:04]}  Rf5 {[%clk 0:00:06]} 58. Rb7+ {[%clk 0:00:03]}  Kh6 {[%clk 0:00:06]} 59. Rg7 {[%clk 0:00:04]}  Rh5 {[%clk 0:00:05]} 60. Kf6 {[%clk 0:00:03]}  Rf5+ {[%clk 0:00:05]} 61. Ke6 {[%clk 0:00:02]}  Kxg7 {[%clk 0:00:06]} 0-1

[Event "January 2 Early 2024"]
[Site "https://www.chess.com"]
[Date "2024.01.02"]
[Round "8"]
[White "Piddubna, Bozhena"]
[Black "Lopusiewicz, Piotr"]
[Result "1-0"]
[Board "137"]
[TimeControl "180+1"]
[WhiteFideId "34109293"]
[BlackFideId "1116029"]
[WhiteElo "2246"]
[BlackElo "2491"]
[WhiteTeam "UKR"]
[BlackTeam "POL"]
[WhiteClock "0:01:14"]
[BlackClock "0:01:10"]

1. d4 {[%clk 0:02:53]}  Nf6 {[%clk 0:02:59]} 2. Nf3 {[%clk 0:02:53]}  d5 {[%clk 0:02:59]} 3. c4 {[%clk 0:02:53]}  e6 {[%clk 0:02:59]} 4. g3 {[%clk 0:02:53]}  dxc4 {[%clk 0:02:58]} 5. Bg2 {[%clk 0:02:53]}  c5 {[%clk 0:02:58]} 6. O-O {[%clk 0:02:52]}  Nc6 {[%clk 0:02:58]} 7. Qa4 {[%clk 0:02:53]}  Bd7 {[%clk 0:02:57]} 8. Qxc4 {[%clk 0:02:53]}  b5 {[%clk 0:02:56]} 9. Qc3 {[%clk 0:02:53]}  b4 {[%clk 0:02:56]} 10. Qd3 {[%clk 0:02:53]}  Rc8 {[%clk 0:02:51]} 11. dxc5 {[%clk 0:02:15]}  Bxc5 {[%clk 0:02:49]} 12. Be3 {[%clk 0:02:16]}  Bxe3 {[%clk 0:02:46]} 13. Qxe3 {[%clk 0:02:17]}  O-O {[%clk 0:02:45]} 14. Nbd2 {[%clk 0:02:15]}  Nd5 {[%clk 0:02:40]} 15. Qe4 {[%clk 0:01:49]}  Qe7 {[%clk 0:02:31]} 16. Nc4 {[%clk 0:01:47]}  Rfd8 {[%clk 0:02:27]} 17. Rfd1 {[%clk 0:01:46]}  Be8 {[%clk 0:02:07]} 18. Ne1 {[%clk 0:01:44]}  Nf6 {[%clk 0:01:56]} 19. Qe3 {[%clk 0:01:36]}  Nd5 {[%clk 0:01:42]} 20. Bxd5 {[%clk 0:01:31]}  exd5 {[%clk 0:01:38]} 21. Qxe7 {[%clk 0:01:30]}  Nxe7 {[%clk 0:01:38]} 22. Na5 {[%clk 0:01:27]}  Ba4 {[%clk 0:01:29]} 23. b3 {[%clk 0:01:21]}  Bb5 {[%clk 0:01:28]} 24. Rd2 {[%clk 0:01:21]}  Rc5 {[%clk 0:01:15]} 25. Nb7 {[%clk 0:01:14]}  Rc7 {[%clk 0:01:10]} 26. Nxd8 {[%clk 0:01:14]} 1-0

[Event "January 2 Early 2024"]
[Site "https://www.chess.com"]
[Date "2024.01.02"]
[Round "8"]
[White "Hasanagic, Anel"]
[Black "Kohler, Aran"]
[Result "1-0"]
[Board "138"]
[TimeControl "180+1"]
[WhiteFideId "14605791"]
[BlackFideId "1002856"]
[WhiteElo "2491"]
[BlackElo "2231"]
[WhiteTeam "SLO"]
[BlackTeam "NED"]
[WhiteClock "0:00:07"]
[BlackClock "0:00:11"]

1. b4 {[%clk 0:02:47]}  c6 {[%clk 0:02:55]} 2. Bb2 {[%clk 0:02:46]}  Qb6 {[%clk 0:02:55]} 3. a3 {[%clk 0:02:44]}  a5 {[%clk 0:02:55]} 4. c3 {[%clk 0:02:44]}  Nf6 {[%clk 0:02:53]} 5. Nf3 {[%clk 0:02:43]}  g6 {[%clk 0:02:50]} 6. e3 {[%clk 0:02:43]}  Bg7 {[%clk 0:02:50]} 7. Be2 {[%clk 0:02:40]}  O-O {[%clk 0:02:50]} 8. O-O {[%clk 0:02:41]}  d6 {[%clk 0:02:46]} 9. d4 {[%clk 0:02:41]}  Nbd7 {[%clk 0:02:46]} 10. Nbd2 {[%clk 0:02:40]}  e5 {[%clk 0:02:44]} 11. Nc4 {[%clk 0:02:39]}  Qc7 {[%clk 0:02:45]} 12. Nxa5 {[%clk 0:02:26]}  e4 {[%clk 0:02:42]} 13. Nd2 {[%clk 0:02:23]}  d5 {[%clk 0:02:42]} 14. c4 {[%clk 0:02:20]}  b6 {[%clk 0:02:41]} 15. Nab3 {[%clk 0:02:19]}  Ba6 {[%clk 0:02:40]} 16. cxd5 {[%clk 0:02:12]}  Bxe2 {[%clk 0:02:37]} 17. Qxe2 {[%clk 0:02:13]}  cxd5 {[%clk 0:02:33]} 18. Rfc1 {[%clk 0:02:12]}  Qb7 {[%clk 0:02:28]} 19. a4 {[%clk 0:02:10]}  Rfc8 {[%clk 0:02:28]} 20. h3 {[%clk 0:02:09]}  Rxc1+ {[%clk 0:02:26]} 21. Bxc1 {[%clk 0:02:10]}  Ne8 {[%clk 0:02:24]} 22. a5 {[%clk 0:02:08]}  bxa5 {[%clk 0:02:23]} 23. bxa5 {[%clk 0:02:07]}  Nd6 {[%clk 0:02:22]} 24. Rb1 {[%clk 0:01:53]}  Qc6 {[%clk 0:02:11]} 25. Ba3 {[%clk 0:01:52]}  Nb5 {[%clk 0:01:45]} 26. Bb4 {[%clk 0:01:44]}  Bf8 {[%clk 0:01:45]} 27. Rc1 {[%clk 0:01:41]}  Qb7 {[%clk 0:01:43]} 28. Bxf8 {[%clk 0:01:41]}  Kxf8 {[%clk 0:01:38]} 29. f3 {[%clk 0:01:02]}  exf3 {[%clk 0:01:33]} 30. Qxf3 {[%clk 0:01:03]}  Kg7 {[%clk 0:01:31]} 31. Rf1 {[%clk 0:00:33]}  Rf8 {[%clk 0:01:29]} 32. Qg3 {[%clk 0:00:28]}  Nc3 {[%clk 0:01:23]} 33. Qd6 {[%clk 0:00:25]}  Ne4 {[%clk 0:01:14]} 34. Nxe4 {[%clk 0:00:24]}  dxe4 {[%clk 0:01:15]} 35. Nc5 {[%clk 0:00:20]}  Nxc5 {[%clk 0:01:14]} 36. Qe5+ {[%clk 0:00:19]}  f6 {[%clk 0:01:09]} 37. Qxc5 {[%clk 0:00:20]}  Ra8 {[%clk 0:01:08]} 38. Qb6 {[%clk 0:00:15]}  Qd5 {[%clk 0:01:04]} 39. Qxf6+ {[%clk 0:00:15]}  Kh6 {[%clk 0:01:04]} 40. a6 {[%clk 0:00:14]}  Qa2 {[%clk 0:00:55]} 41. Qf4+ {[%clk 0:00:14]}  Kg7 {[%clk 0:00:55]} 42. Qxe4 {[%clk 0:00:14]}  Qxa6 {[%clk 0:00:52]} 43. Qe5+ {[%clk 0:00:14]}  Kh6 {[%clk 0:00:51]} 44. Rf6 {[%clk 0:00:15]}  Qe2 {[%clk 0:00:35]} 45. Qf4+ {[%clk 0:00:14]}  Kh5 {[%clk 0:00:35]} 46. Re6 {[%clk 0:00:08]}  Ra1+ {[%clk 0:00:33]} 47. Kh2 {[%clk 0:00:08]}  Rh1+ {[%clk 0:00:12]} 48. Kxh1 {[%clk 0:00:07]}  Qe1+ {[%clk 0:00:11]} 49. Kh2 {[%clk 0:00:08]}  h6 {[%clk 0:00:11]} 50. Qg4# {[%clk 0:00:07]} 1-0

[Event "January 2 Early 2024"]
[Site "https://www.chess.com"]
[Date "2024.01.02"]
[Round "8"]
[White "Biriukov, Ilja"]
[Black "Shishkov, Andrei"]
[Result "1-0"]
[Board "139"]
[TimeControl "180+1"]
[WhiteFideId "4113373"]
[BlackFideId "4500563"]
[WhiteElo "2210"]
[BlackElo "2489"]
[WhiteTeam "RUS"]
[BlackTeam "EST"]
[WhiteClock "0:00:24"]
[BlackClock "0:00:00"]

1. d4 {[%clk 0:03:00]}  Nf6 {[%clk 0:02:58]} 2. Nc3 {[%clk 0:03:00]}  d5 {[%clk 0:02:58]} 3. Bf4 {[%clk 0:02:59]}  c5 {[%clk 0:02:58]} 4. e3 {[%clk 0:02:58]}  cxd4 {[%clk 0:02:54]} 5. exd4 {[%clk 0:02:59]}  Bg4 {[%clk 0:02:54]} 6. f3 {[%clk 0:02:57]}  Bd7 {[%clk 0:02:55]} 7. Qd2 {[%clk 0:02:51]}  Nc6 {[%clk 0:02:54]} 8. O-O-O {[%clk 0:02:46]}  e6 {[%clk 0:02:52]} 9. g4 {[%clk 0:02:44]}  a6 {[%clk 0:02:46]} 10. h4 {[%clk 0:02:43]}  b5 {[%clk 0:02:45]} 11. h5 {[%clk 0:02:40]}  b4 {[%clk 0:02:25]} 12. Na4 {[%clk 0:02:32]}  Qa5 {[%clk 0:02:21]} 13. b3 {[%clk 0:02:29]}  h6 {[%clk 0:01:49]} 14. Kb1 {[%clk 0:02:19]}  Rc8 {[%clk 0:01:46]} 15. Nc5 {[%clk 0:02:13]}  Bxc5 {[%clk 0:01:39]} 16. dxc5 {[%clk 0:02:14]}  e5 {[%clk 0:01:28]} 17. Bg3 {[%clk 0:02:09]}  O-O {[%clk 0:01:13]} 18. g5 {[%clk 0:02:02]}  hxg5 {[%clk 0:01:14]} 19. Qxg5 {[%clk 0:01:59]}  Nh7 {[%clk 0:01:06]} 20. Qe3 {[%clk 0:01:45]}  d4 {[%clk 0:00:57]} 21. Qc1 {[%clk 0:01:42]}  Bf5 {[%clk 0:00:50]} 22. Bd3 {[%clk 0:01:39]}  Bxd3 {[%clk 0:00:44]} 23. Rxd3 {[%clk 0:01:39]}  Qxc5 {[%clk 0:00:41]} 24. h6 {[%clk 0:01:39]}  g6 {[%clk 0:00:39]} 25. Nh3 {[%clk 0:01:36]}  Rfe8 {[%clk 0:00:30]} 26. Ng5 {[%clk 0:01:32]}  Ne7 {[%clk 0:00:26]} 27. Ne4 {[%clk 0:01:22]}  Qb5 {[%clk 0:00:19]} 28. Qd2 {[%clk 0:01:16]}  Qc6 {[%clk 0:00:17]} 29. Bxe5 {[%clk 0:01:07]}  Nd5 {[%clk 0:00:16]} 30. Bxd4 {[%clk 0:01:03]}  Rcd8 {[%clk 0:00:13]} 31. Bb2 {[%clk 0:00:49]}  a5 {[%clk 0:00:13]} 32. Rd1 {[%clk 0:00:37]}  Nc3+ {[%clk 0:00:10]} 33. Nxc3 {[%clk 0:00:31]}  Rxd3 {[%clk 0:00:09]} 34. Qxd3 {[%clk 0:00:28]}  bxc3 {[%clk 0:00:10]} 35. Qxc3 {[%clk 0:00:29]}  Qxc3 {[%clk 0:00:09]} 36. Bxc3 {[%clk 0:00:29]}  Ng5 {[%clk 0:00:08]} 37. f4 {[%clk 0:00:29]}  Ne4 {[%clk 0:00:08]} 38. Bg7 {[%clk 0:00:28]}  Kh7 {[%clk 0:00:06]} 39. Rd5 {[%clk 0:00:26]}  Rg8 {[%clk 0:00:05]} 40. Rxa5 {[%clk 0:00:26]}  f6 {[%clk 0:00:03]} 41. Ra7 {[%clk 0:00:24]}  g5 {[%clk 0:00:02]} 42. Bxf6+ {[%clk 0:00:24]}  Kxh6 {[%clk 0:00:02]} 43. Bxg5+ {[%clk 0:00:24]}  Nxg5 {[%clk 0:00:00]} 44. fxg5+ {[%clk 0:00:24]} 1-0

[Event "January 2 Early 2024"]
[Site "https://www.chess.com"]
[Date "2024.01.02"]
[Round "8"]
[White "Smirnov, Mark"]
[Black "Schuh, Karsten"]
[Result "1-0"]
[Board "144"]
[TimeControl "180+1"]
[WhiteFideId "13764594"]
[BlackFideId "4637950"]
[WhiteElo "2535"]
[BlackElo "2365"]
[WhiteTeam "KAZ"]
[BlackTeam "GER"]
[WhiteClock "0:00:06"]
[BlackClock "0:00:07"]

1. e4 {[%clk 0:02:50]}  c5 {[%clk 0:02:59]} 2. a3 {[%clk 0:02:49]}  Nc6 {[%clk 0:02:54]} 3. b4 {[%clk 0:02:48]}  d5 {[%clk 0:02:48]} 4. exd5 {[%clk 0:02:39]}  Qxd5 {[%clk 0:02:48]} 5. Nf3 {[%clk 0:02:38]}  Bg4 {[%clk 0:02:46]} 6. bxc5 {[%clk 0:02:32]}  e5 {[%clk 0:02:44]} 7. Nc3 {[%clk 0:02:30]}  Qd7 {[%clk 0:02:43]} 8. h3 {[%clk 0:02:16]}  Bh5 {[%clk 0:02:41]} 9. g4 {[%clk 0:02:13]}  Bg6 {[%clk 0:02:41]} 10. Bb5 {[%clk 0:02:12]}  f6 {[%clk 0:02:25]} 11. d4 {[%clk 0:01:31]}  exd4 {[%clk 0:02:24]} 12. Nxd4 {[%clk 0:01:30]}  Bxc5 {[%clk 0:02:06]} 13. Qe2+ {[%clk 0:01:09]}  Nge7 {[%clk 0:02:01]} 14. Ne6 {[%clk 0:01:06]}  Bb6 {[%clk 0:01:44]} 15. Nxg7+ {[%clk 0:00:27]}  Kf7 {[%clk 0:01:44]} 16. Bh6 {[%clk 0:00:24]}  Kg8 {[%clk 0:00:31]} 17. Bc4+ {[%clk 0:00:19]}  Bf7 {[%clk 0:00:30]} 18. Nh5 {[%clk 0:00:16]}  Qd6 {[%clk 0:00:26]} 19. Ne4 {[%clk 0:00:12]}  Bxc4 {[%clk 0:00:11]} 20. Qxc4+ {[%clk 0:00:11]}  Qd5 {[%clk 0:00:12]} 21. Nhxf6+ {[%clk 0:00:09]}  Kf7 {[%clk 0:00:12]} 22. Nxd5 {[%clk 0:00:09]}  Ne5 {[%clk 0:00:10]} 23. Ng5+ {[%clk 0:00:09]}  Kg6 {[%clk 0:00:09]} 24. Nxe7+ {[%clk 0:00:08]}  Kf6 {[%clk 0:00:07]} 25. Qe6# {[%clk 0:00:06]} 1-0

[Event "January 2 Early 2024"]
[Site "https://www.chess.com"]
[Date "2024.01.02"]
[Round "8"]
[White "Baches Garcia, Guillermo"]
[Black "Tuleyeva-Aketayeva, Dana"]
[Result "1-0"]
[Board "145"]
[TimeControl "180+1"]
[WhiteFideId "2209764"]
[BlackFideId "13701932"]
[WhiteElo "2505"]
[BlackElo "2330"]
[WhiteTeam "ESP"]
[BlackTeam "KAZ"]
[WhiteClock "0:00:34"]
[BlackClock "0:00:00"]

1. d4 {[%clk 0:03:00]}  Nf6 {[%clk 0:02:58]} 2. Nf3 {[%clk 0:03:01]}  e6 {[%clk 0:02:57]} 3. Bg5 {[%clk 0:03:02]}  Be7 {[%clk 0:02:56]} 4. e3 {[%clk 0:03:02]}  b6 {[%clk 0:02:55]} 5. Nbd2 {[%clk 0:03:02]}  O-O {[%clk 0:02:54]} 6. Bd3 {[%clk 0:03:02]}  Ba6 {[%clk 0:02:54]} 7. Bxa6 {[%clk 0:03:01]}  Nxa6 {[%clk 0:02:54]} 8. O-O {[%clk 0:03:01]}  c5 {[%clk 0:02:50]} 9. c3 {[%clk 0:03:01]}  Nc7 {[%clk 0:02:49]} 10. Qe2 {[%clk 0:03:00]}  d5 {[%clk 0:02:45]} 11. Ne5 {[%clk 0:02:59]}  Qe8 {[%clk 0:02:35]} 12. f4 {[%clk 0:02:56]}  Ne4 {[%clk 0:02:10]} 13. Bxe7 {[%clk 0:02:49]}  Qxe7 {[%clk 0:02:09]} 14. Nxe4 {[%clk 0:02:46]}  dxe4 {[%clk 0:02:09]} 15. Qc2 {[%clk 0:02:35]}  f5 {[%clk 0:01:50]} 16. Rad1 {[%clk 0:02:30]}  Nd5 {[%clk 0:01:49]} 17. Qe2 {[%clk 0:02:15]}  cxd4 {[%clk 0:01:44]} 18. Rxd4 {[%clk 0:02:05]}  Rac8 {[%clk 0:01:42]} 19. a3 {[%clk 0:02:03]}  Rfd8 {[%clk 0:01:40]} 20. Rfd1 {[%clk 0:02:03]}  g5 {[%clk 0:01:03]} 21. c4 {[%clk 0:01:51]}  gxf4 {[%clk 0:00:22]} 22. cxd5 {[%clk 0:01:47]}  f3 {[%clk 0:00:20]} 23. gxf3 {[%clk 0:01:37]}  Qf6 {[%clk 0:00:19]} 24. f4 {[%clk 0:01:30]}  Rc7 {[%clk 0:00:17]} 25. dxe6 {[%clk 0:01:08]}  Rxd4 {[%clk 0:00:12]} 26. Rxd4 {[%clk 0:01:05]}  Rc1+ {[%clk 0:00:12]} 27. Rd1 {[%clk 0:01:02]}  Qg7+ {[%clk 0:00:12]} 28. Kf2 {[%clk 0:00:56]}  Rc8 {[%clk 0:00:07]} 29. Rg1 {[%clk 0:00:50]}  Kf8 {[%clk 0:00:03]} 30. Rxg7 {[%clk 0:00:47]}  Kxg7 {[%clk 0:00:03]} 31. Qh5 {[%clk 0:00:38]}  Rc2+ {[%clk 0:00:02]} 32. Kg3 {[%clk 0:00:37]}  Rc7 {[%clk 0:00:00]} 33. Qg5+ {[%clk 0:00:34]} 1-0

[Event "January 2 Early 2024"]
[Site "https://www.chess.com"]
[Date "2024.01.02"]
[Round "8"]
[White "knightmareprodigy"]
[Black "Kabanov, Nikolai"]
[Result "1-0"]
[Board "148"]
[TimeControl "180+1"]
[BlackFideId "4127820"]
[WhiteElo "2303"]
[BlackElo "2475"]
[BlackTeam "RUS"]
[WhiteClock "0:00:30"]
[BlackClock "0:00:07"]

1. e4 {[%clk 0:03:00]}  c6 {[%clk 0:02:59]} 2. d4 {[%clk 0:02:59]}  d5 {[%clk 0:03:00]} 3. e5 {[%clk 0:02:58]}  Bf5 {[%clk 0:02:58]} 4. h4 {[%clk 0:02:58]}  h5 {[%clk 0:02:56]} 5. Bg5 {[%clk 0:02:57]}  Qb6 {[%clk 0:02:38]} 6. Bd3 {[%clk 0:02:56]}  Qxd4 {[%clk 0:02:23]} 7. Nf3 {[%clk 0:02:54]}  Qg4 {[%clk 0:02:18]} 8. O-O {[%clk 0:02:51]}  Bxd3 {[%clk 0:02:11]} 9. Qxd3 {[%clk 0:02:47]}  Nd7 {[%clk 0:02:08]} 10. e6 {[%clk 0:02:17]}  Qxe6 {[%clk 0:02:03]} 11. Re1 {[%clk 0:02:16]}  Qg6 {[%clk 0:01:58]} 12. Qb3 {[%clk 0:02:03]}  O-O-O {[%clk 0:01:54]} 13. Nc3 {[%clk 0:02:00]}  f6 {[%clk 0:01:47]} 14. Be3 {[%clk 0:01:52]}  a6 {[%clk 0:01:30]} 15. Nd4 {[%clk 0:01:42]}  e5 {[%clk 0:01:22]} 16. Nxc6 {[%clk 0:01:37]}  bxc6 {[%clk 0:01:19]} 17. Nxd5 {[%clk 0:01:34]}  cxd5 {[%clk 0:01:06]} 18. Qxd5 {[%clk 0:01:33]}  Ne7 {[%clk 0:01:04]} 19. Qc4+ {[%clk 0:01:26]}  Kb7 {[%clk 0:00:56]} 20. Rad1 {[%clk 0:01:24]}  Nc6 {[%clk 0:00:50]} 21. Rd3 {[%clk 0:01:20]}  Bb4 {[%clk 0:00:18]} 22. Rb3 {[%clk 0:01:04]}  a5 {[%clk 0:00:18]} 23. a3 {[%clk 0:01:00]}  Kc7 {[%clk 0:00:16]} 24. axb4 {[%clk 0:00:59]}  axb4 {[%clk 0:00:16]} 25. Rxb4 {[%clk 0:00:57]}  Rb8 {[%clk 0:00:16]} 26. Ra4 {[%clk 0:00:54]}  Ra8 {[%clk 0:00:15]} 27. Rea1 {[%clk 0:00:39]}  Qg4 {[%clk 0:00:14]} 28. Qxg4 {[%clk 0:00:35]}  hxg4 {[%clk 0:00:15]} 29. Rxa8 {[%clk 0:00:34]}  Rxa8 {[%clk 0:00:14]} 30. Rxa8 {[%clk 0:00:33]}  Nb4 {[%clk 0:00:14]} 31. Rg8 {[%clk 0:00:32]}  Nxc2 {[%clk 0:00:12]} 32. Rxg7 {[%clk 0:00:32]}  Kd6 {[%clk 0:00:13]} 33. h5 {[%clk 0:00:32]}  Nf8 {[%clk 0:00:12]} 34. h6 {[%clk 0:00:32]}  f5 {[%clk 0:00:12]} 35. Bg5 {[%clk 0:00:31]}  f4 {[%clk 0:00:10]} 36. Be7+ {[%clk 0:00:30]}  Ke6 {[%clk 0:00:07]} 37. Bxf8 {[%clk 0:00:30]} 1-0